[Event "*** SCC Grand Prix: Titled Tuesday Blitz"]
[Site "Chess.com"]
[Date "2020.06.02"]
[Round "2"]
[White "manmanlai1"]
[Black "DanielDardha2005"]
[Result "0-1"]
[WhiteElo "2353"]
[BlackElo "2650"]
[TimeControl "180+1"]
[EndTime "10:19:41 PDT"]
[Termination "DanielDardha2005 won by checkmate"]

1. e4 {[%clk 0:03:00.9]} 1... c5 {[%clk 0:02:58.7]} 2. Nf3 {[%clk 0:02:57.4]}
2... Nc6 {[%clk 0:02:58.5]} 3. Bb5 {[%clk 0:02:56.6]} 3... Nf6 {[%clk
0:02:58.3]} 4. d3 {[%clk 0:02:55.2]} 4... g6 {[%clk 0:02:57.6]} 5. Bxc6 {[%clk
0:02:53.4]} 5... dxc6 {[%clk 0:02:58.5]} 6. h3 {[%clk 0:02:51.5]} 6... Bg7
{[%clk 0:02:57.5]} 7. Nc3 {[%clk 0:02:51.7]} 7... O-O {[%clk 0:02:56]} 8. Be3
{[%clk 0:02:52.3]} 8... b6 {[%clk 0:02:55]} 9. Qd2 {[%clk 0:02:52.8]} 9... Re8
{[%clk 0:02:53.9]} 10. Bh6 {[%clk 0:02:50.9]} 10... Bh8 {[%clk 0:02:53.5]} 11.
e5 {[%clk 0:02:46.8]} 11... Nd5 {[%clk 0:02:52.3]} 12. O-O {[%clk 0:02:45.5]}
12... f5 {[%clk 0:02:43.7]} 13. Ne2 {[%clk 0:02:42.8]} 13... Nc7 {[%clk
0:02:36.7]} 14. Nf4 {[%clk 0:02:40.1]} 14... Ne6 {[%clk 0:02:36.6]} 15. Nxe6
{[%clk 0:02:34.5]} 15... Bxe6 {[%clk 0:02:37.5]} 16. h4 {[%clk 0:02:32.9]} 16...
Bd5 {[%clk 0:02:35.7]} 17. Qf4 {[%clk 0:01:58.5]} 17... Bxf3 {[%clk 0:02:35.1]}
18. gxf3 {[%clk 0:01:57.9]} 18... Qd4 {[%clk 0:02:27.8]} 19. Qxd4 {[%clk
0:01:54.3]} 19... cxd4 {[%clk 0:02:28.7]} 20. f4 {[%clk 0:01:50.4]} 20... Bg7
{[%clk 0:02:22.4]} 21. Bxg7 {[%clk 0:01:49.3]} 21... Kxg7 {[%clk 0:02:23.3]} 22.
Kg2 {[%clk 0:01:49.1]} 22... h5 {[%clk 0:02:18.3]} 23. Kf3 {[%clk 0:01:48.9]}
23... Kf7 {[%clk 0:02:17.6]} 24. Rg1 {[%clk 0:01:49.3]} 24... Rg8 {[%clk
0:02:17.8]} 25. Rg5 {[%clk 0:01:49]} 25... c5 {[%clk 0:02:16.1]} 26. a4 {[%clk
0:01:46.5]} 26... a6 {[%clk 0:02:15.7]} 27. b3 {[%clk 0:01:47]} 27... b5 {[%clk
0:02:13.9]} 28. Rgg1 {[%clk 0:01:45.5]} 28... c4 {[%clk 0:02:08.3]} 29. Ke2
{[%clk 0:01:39.6]} 29... Rac8 {[%clk 0:01:51.5]} 30. axb5 {[%clk 0:01:34.2]}
30... axb5 {[%clk 0:01:49.5]} 31. bxc4 {[%clk 0:01:33.5]} 31... bxc4 {[%clk
0:01:49.5]} 32. Kd2 {[%clk 0:01:32.8]} 32... Rc6 {[%clk 0:01:30.9]} 33. dxc4
{[%clk 0:01:29.9]} 33... Rxc4 {[%clk 0:01:30.7]} 34. Ra6 {[%clk 0:01:28.5]}
34... d3 {[%clk 0:01:20.3]} 35. cxd3 {[%clk 0:01:23.2]} 35... Rxf4 {[%clk
0:01:19.9]} 36. Ke3 {[%clk 0:01:18.2]} 36... Rxh4 {[%clk 0:01:19.1]} 37. d4
{[%clk 0:01:13]} 37... Re4+ {[%clk 0:01:13.7]} 38. Kd3 {[%clk 0:01:12.7]} 38...
Rd8 {[%clk 0:01:09.5]} 39. Raxg6 {[%clk 0:00:45.6]} 39... Rdxd4+ {[%clk
0:01:08.7]} 40. Kc3 {[%clk 0:00:45.9]} 40... Rc4+ {[%clk 0:00:50.1]} 41. Kd3
{[%clk 0:00:38.5]} 41... Rc7 {[%clk 0:00:38.9]} 42. e6+ {[%clk 0:00:23.2]} 42...
Rxe6 {[%clk 0:00:38]} 43. Rxe6 {[%clk 0:00:23.1]} 43... Kxe6 {[%clk 0:00:38.9]}
44. Rg5 {[%clk 0:00:22.9]} 44... Rd7+ {[%clk 0:00:29]} 45. Ke3 {[%clk
0:00:21.5]} 45... Rd5 {[%clk 0:00:24.3]} 46. f4 {[%clk 0:00:17.7]} 46... Ra5
{[%clk 0:00:12.5]} 47. Rxh5 {[%clk 0:00:17.9]} 47... Ra3+ {[%clk 0:00:12.4]} 48.
Ke2 {[%clk 0:00:18]} 48... Kf6 {[%clk 0:00:10.7]} 49. Rh6+ {[%clk 0:00:17.8]}
49... Kf7 {[%clk 0:00:11]} 50. Rb6 {[%clk 0:00:17.4]} 50... e6 {[%clk
0:00:09.9]} 51. Rb8 {[%clk 0:00:15.8]} 51... Kg6 {[%clk 0:00:10]} 52. Rg8+
{[%clk 0:00:15]} 52... Kf6 {[%clk 0:00:10.1]} 53. Kf2 {[%clk 0:00:14.7]} 53...
Ke7 {[%clk 0:00:10]} 54. Ke2 {[%clk 0:00:14.3]} 54... Kd6 {[%clk 0:00:10.3]} 55.
Rd8+ {[%clk 0:00:14.3]} 55... Kc5 {[%clk 0:00:10.8]} 56. Kf2 {[%clk 0:00:13.4]}
56... Ra4 {[%clk 0:00:09.8]} 57. Kf3 {[%clk 0:00:13]} 57... Ra3+ {[%clk
0:00:10.2]} 58. Ke2 {[%clk 0:00:12.8]} 58... Rc3 {[%clk 0:00:11.1]} 59. Rd7
{[%clk 0:00:10.8]} 59... Kc6 {[%clk 0:00:10.5]} 60. Rd8 {[%clk 0:00:10.8]} 60...
Rc5 {[%clk 0:00:09.9]} 61. Ke3 {[%clk 0:00:10.1]} 61... Rd5 {[%clk 0:00:09.8]}
62. Re8 {[%clk 0:00:10]} 62... Kd7 {[%clk 0:00:09.2]} 63. Rg8 {[%clk 0:00:09.3]}
63... Ra5 {[%clk 0:00:09.1]} 64. Rb8 {[%clk 0:00:08.8]} 64... Kc6 {[%clk
0:00:08.7]} 65. Rd8 {[%clk 0:00:08.2]} 65... Ra7 {[%clk 0:00:07.9]} 66. Re8
{[%clk 0:00:07.8]} 66... Ra3+ {[%clk 0:00:07.7]} 67. Kd4 {[%clk 0:00:06.5]}
67... Kd6 {[%clk 0:00:06.9]} 68. Rd8+ {[%clk 0:00:05.6]} 68... Ke7 {[%clk
0:00:07.3]} 69. Rb8 {[%clk 0:00:05]} 69... Rf3 {[%clk 0:00:07.1]} 70. Ke5 {[%clk
0:00:01.5]} 70... Re3+ {[%clk 0:00:07.2]} 71. Kd4 {[%clk 0:00:01.9]} 71... Re4+
{[%clk 0:00:08.1]} 72. Kd3 {[%clk 0:00:01.5]} 72... Rxf4 {[%clk 0:00:09]} 73.
Rb7+ {[%clk 0:00:01.9]} 73... Kf6 {[%clk 0:00:09.5]} 74. Ke3 {[%clk 0:00:02.8]}
74... Re4+ {[%clk 0:00:09.9]} 75. Kf3 {[%clk 0:00:02.6]} 75... Ra4 {[%clk
0:00:10.8]} 76. Rb8 {[%clk 0:00:03.3]} 76... Ra5 {[%clk 0:00:09.6]} 77. Ke2
{[%clk 0:00:04.2]} 77... Ke5 {[%clk 0:00:09.8]} 78. Re8 {[%clk 0:00:04.8]} 78...
Ra6 {[%clk 0:00:09.4]} 79. Kf2 {[%clk 0:00:05.7]} 79... Kf4 {[%clk 0:00:09.4]}
80. Rf8 {[%clk 0:00:05.7]} 80... Ke4 {[%clk 0:00:09.6]} 81. Ke1 {[%clk
0:00:06.6]} 81... f4 {[%clk 0:00:09.9]} 82. Rb8 {[%clk 0:00:06.5]} 82... e5
{[%clk 0:00:10]} 83. Rb3 {[%clk 0:00:06]} 83... Kf5 {[%clk 0:00:09.4]} 84. Kf2
{[%clk 0:00:06.1]} 84... Ra2+ {[%clk 0:00:09.5]} 85. Kf3 {[%clk 0:00:05.5]}
85... e4# {[%clk 0:00:09.8]} 0-1

[Event "*** SCC Grand Prix: Titled Tuesday Blitz"]
[Site "Chess.com"]
[Date "2020.06.02"]
[Round "2"]
[White "MergenKakabaev"]
[Black "beto-betun"]
[Result "1-0"]
[WhiteElo "2399"]
[BlackElo "2142"]
[TimeControl "180+1"]
[EndTime "10:19:41 PDT"]
[Termination "MergenKakabaev won by resignation"]

1. e4 {[%clk 0:02:53.9]} 1... c5 {[%clk 0:03:00.2]} 2. Nf3 {[%clk 0:02:51.2]}
2... d6 {[%clk 0:03:00.5]} 3. d4 {[%clk 0:02:46.7]} 3... cxd4 {[%clk 0:03:01.4]}
4. Nxd4 {[%clk 0:02:47.6]} 4... Nf6 {[%clk 0:03:00.2]} 5. Nc3 {[%clk 0:02:47.7]}
5... a6 {[%clk 0:02:59.6]} 6. Bg5 {[%clk 0:02:47.7]} 6... e6 {[%clk 0:02:58.9]}
7. f4 {[%clk 0:02:47.9]} 7... Be7 {[%clk 0:02:56.6]} 8. Qf3 {[%clk 0:02:47.9]}
8... Qc7 {[%clk 0:02:52.5]} 9. O-O-O {[%clk 0:02:46.9]} 9... Nbd7 {[%clk
0:02:50.5]} 10. g4 {[%clk 0:02:46.6]} 10... b5 {[%clk 0:02:50.3]} 11. Bxf6
{[%clk 0:02:46.4]} 11... gxf6 {[%clk 0:02:46.7]} 12. f5 {[%clk 0:02:43.4]} 12...
Ne5 {[%clk 0:02:45]} 13. Qg3 {[%clk 0:02:42.8]} 13... b4 {[%clk 0:02:32.5]} 14.
Nce2 {[%clk 0:02:37.6]} 14... Nc6 {[%clk 0:02:24.7]} 15. Nxc6 {[%clk 0:02:29.2]}
15... Qxc6 {[%clk 0:02:24.9]} 16. Nd4 {[%clk 0:02:28.5]} 16... Qc5 {[%clk
0:02:24.7]} 17. Bg2 {[%clk 0:02:27.4]} 17... e5 {[%clk 0:02:17.7]} 18. Nb3
{[%clk 0:02:26.9]} 18... Qc7 {[%clk 0:02:17.8]} 19. Kb1 {[%clk 0:02:20]} 19...
a5 {[%clk 0:02:17.5]} 20. Rhe1 {[%clk 0:02:08.9]} 20... a4 {[%clk 0:02:17.2]}
21. Nc1 {[%clk 0:02:08.6]} 21... Ba6 {[%clk 0:02:11.5]} 22. Bf1 {[%clk
0:02:00.3]} 22... Bxf1 {[%clk 0:02:08.9]} 23. Rxf1 {[%clk 0:01:57.7]} 23... a3
{[%clk 0:02:09]} 24. b3 {[%clk 0:01:52.1]} 24... Rc8 {[%clk 0:02:02.5]} 25. c4
{[%clk 0:01:50]} 25... bxc3 {[%clk 0:01:55]} 26. Kc2 {[%clk 0:01:48.5]} 26... h5
{[%clk 0:01:44.8]} 27. gxh5 {[%clk 0:01:45.2]} 27... Rxh5 {[%clk 0:01:42.7]} 28.
h4 {[%clk 0:01:45.3]} 28... Kd7 {[%clk 0:01:38]} 29. Rf3 {[%clk 0:01:42.3]}
29... Qb7 {[%clk 0:01:32.3]} 30. Rd5 {[%clk 0:01:37.1]} 30... Rch8 {[%clk
0:01:16.8]} 31. Rxc3 {[%clk 0:01:34.4]} 31... Rxh4 {[%clk 0:01:17.2]} 32. Qd3
{[%clk 0:01:26.1]} 32... Rh2+ {[%clk 0:01:14]} 33. Kb1 {[%clk 0:01:20.8]} 33...
Rh1 {[%clk 0:01:04.6]} 34. Rb5 {[%clk 0:01:11.8]} 34... Qa8 {[%clk 0:00:58.3]}
35. Qc4 {[%clk 0:01:05.2]} 35... Rc8 {[%clk 0:00:56.1]} 36. Qxc8+ {[%clk
0:00:52.3]} 36... Qxc8 {[%clk 0:00:56.1]} 37. Rxc8 {[%clk 0:00:50.3]} 37... Kxc8
{[%clk 0:00:57]} 38. Kc2 {[%clk 0:00:48.3]} 38... Bd8 {[%clk 0:00:51.4]} 39. Ne2
{[%clk 0:00:46.2]} 39... Rh2 {[%clk 0:00:51.3]} 40. Kd3 {[%clk 0:00:45.8]} 40...
Kd7 {[%clk 0:00:49.5]} 41. Nc3 {[%clk 0:00:42.6]} 41... Kc6 {[%clk 0:00:48.7]}
42. Rb8 {[%clk 0:00:36.7]} 42... Bb6 {[%clk 0:00:48.9]} 43. Ra8 {[%clk
0:00:33.8]} 43... Rh3+ {[%clk 0:00:48.7]} 44. Kc4 {[%clk 0:00:33.2]} 44... Rh4
{[%clk 0:00:46.3]} 45. Rxa3 {[%clk 0:00:31.8]} 45... d5+ {[%clk 0:00:44.2]} 46.
Kd3 {[%clk 0:00:20.5]} 46... Rh3+ {[%clk 0:00:39.5]} 47. Kc2 {[%clk 0:00:20.3]}
47... d4 {[%clk 0:00:38.2]} 48. Nd5 {[%clk 0:00:20.2]} 48... Kb7 {[%clk
0:00:34.9]} 49. Nxb6 {[%clk 0:00:17.9]} 49... Kxb6 {[%clk 0:00:33.9]} 50. Ra8
{[%clk 0:00:18.1]} 50... Rh2+ {[%clk 0:00:33.7]} 51. Kd3 {[%clk 0:00:18]} 51...
Rh3+ {[%clk 0:00:30.7]} 52. Kc4 {[%clk 0:00:18.3]} 52... Rc3+ {[%clk 0:00:29.9]}
53. Kb4 {[%clk 0:00:18.4]} 53... Rc7 {[%clk 0:00:26.6]} 54. Rd8 {[%clk
0:00:16.6]} 54... Kc6 {[%clk 0:00:25.1]} 55. a4 {[%clk 0:00:16.7]} 55... Rd7
{[%clk 0:00:24]} 56. Rc8+ {[%clk 0:00:16.5]} 56... Kb7 {[%clk 0:00:21.7]} 57.
Rc1 {[%clk 0:00:16.5]} 57... d3 {[%clk 0:00:22.1]} 58. Kc3 {[%clk 0:00:16.2]}
58... d2 {[%clk 0:00:23]} 59. Rd1 {[%clk 0:00:16.6]} 59... Rc7+ {[%clk
0:00:20.8]} 60. Kxd2 {[%clk 0:00:16.4]} 60... Rd7+ {[%clk 0:00:21]} 61. Ke2
{[%clk 0:00:16.8]} 61... Rc7 {[%clk 0:00:20.4]} 62. Rd5 {[%clk 0:00:16.7]} 62...
Rc3 {[%clk 0:00:18.8]} 63. Rd3 {[%clk 0:00:16.7]} 63... Rc2+ {[%clk 0:00:18.5]}
64. Ke3 {[%clk 0:00:17]} 64... Rc1 {[%clk 0:00:17.5]} 65. b4 {[%clk 0:00:17.2]}
65... Re1+ {[%clk 0:00:16.7]} 66. Kd2 {[%clk 0:00:17.1]} 66... Ra1 {[%clk
0:00:16.6]} 67. a5 {[%clk 0:00:15.9]} 67... Rb1 {[%clk 0:00:16.2]} 68. Rd7+
{[%clk 0:00:15.9]} 68... Kc6 {[%clk 0:00:16.2]} 69. Rxf7 {[%clk 0:00:16.8]}
69... Rxb4 {[%clk 0:00:15.8]} 70. Rxf6+ {[%clk 0:00:17.7]} 70... Kb5 {[%clk
0:00:15.3]} 71. Kd3 {[%clk 0:00:18.2]} 71... Kxa5 {[%clk 0:00:15]} 72. Re6
{[%clk 0:00:19.1]} 72... Rd4+ {[%clk 0:00:14.6]} 73. Ke3 {[%clk 0:00:19.4]}
73... Rd8 {[%clk 0:00:15.1]} 74. Rxe5+ {[%clk 0:00:20.3]} 74... Kb6 {[%clk
0:00:15.9]} 75. f6 {[%clk 0:00:20.3]} 75... Rf8 {[%clk 0:00:15.5]} 76. Re6+
{[%clk 0:00:20.7]} 76... Kc7 {[%clk 0:00:15.5]} 77. e5 {[%clk 0:00:21.6]} 77...
Kd7 {[%clk 0:00:16.1]} 78. Re7+ {[%clk 0:00:22]} 78... Kd8 {[%clk 0:00:16.6]}
79. Ke4 {[%clk 0:00:22.9]} 79... Rh8 {[%clk 0:00:16.4]} 80. Kf5 {[%clk 0:00:23]}
1-0

[Event "*** SCC Grand Prix: Titled Tuesday Blitz"]
[Site "Chess.com"]
[Date "2020.06.02"]
[Round "2"]
[White "A-Fier"]
[Black "umngqusho"]
[Result "1-0"]
[WhiteElo "2738"]
[BlackElo "2500"]
[TimeControl "180+1"]
[EndTime "10:19:46 PDT"]
[Termination "A-Fier won on time"]

1. d4 {[%clk 0:03:00.9]} 1... Nf6 {[%clk 0:02:59.3]} 2. c4 {[%clk 0:03:01.8]}
2... g6 {[%clk 0:02:59.4]} 3. Nc3 {[%clk 0:03:01.8]} 3... Bg7 {[%clk 0:02:59.7]}
4. g3 {[%clk 0:03:00.9]} 4... O-O {[%clk 0:02:59.1]} 5. Bg2 {[%clk 0:03:01.5]}
5... d6 {[%clk 0:02:59.2]} 6. Nf3 {[%clk 0:03:02.1]} 6... Nbd7 {[%clk
0:02:59.2]} 7. O-O {[%clk 0:03:02.5]} 7... e5 {[%clk 0:02:59.1]} 8. e4 {[%clk
0:03:02.7]} 8... c6 {[%clk 0:02:58.9]} 9. h3 {[%clk 0:03:02.4]} 9... Qb6 {[%clk
0:02:58.6]} 10. c5 {[%clk 0:03:02.7]} 10... dxc5 {[%clk 0:02:58.4]} 11. dxe5
{[%clk 0:03:03.2]} 11... Ne8 {[%clk 0:02:57.8]} 12. e6 {[%clk 0:03:03.8]} 12...
fxe6 {[%clk 0:02:57.3]} 13. Ng5 {[%clk 0:03:04.4]} 13... Nc7 {[%clk 0:02:52.8]}
14. f4 {[%clk 0:02:57]} 14... Bd4+ {[%clk 0:02:51.4]} 15. Kh2 {[%clk 0:02:56.1]}
15... Nf6 {[%clk 0:02:50.7]} 16. e5 {[%clk 0:02:55.3]} 16... Nfd5 {[%clk
0:02:50.3]} 17. Nce4 {[%clk 0:02:55.3]} 17... Ne8 {[%clk 0:02:49.8]} 18. h4
{[%clk 0:02:53.6]} 18... Qc7 {[%clk 0:02:44.3]} 19. h5 {[%clk 0:02:50.9]} 19...
Qg7 {[%clk 0:02:25.5]} 20. Bf3 {[%clk 0:02:44]} 20... h6 {[%clk 0:02:02.5]} 21.
Nh3 {[%clk 0:02:42.3]} 21... Kh8 {[%clk 0:01:36.3]} 22. hxg6 {[%clk 0:02:41.5]}
22... Qxg6 {[%clk 0:01:34.5]} 23. Qe2 {[%clk 0:02:41.2]} 23... b6 {[%clk
0:01:30.8]} 24. Bh5 {[%clk 0:02:29.6]} 24... Qg7 {[%clk 0:01:29.8]} 25. g4
{[%clk 0:02:20.8]} 25... a5 {[%clk 0:01:26.5]} 26. Qg2 {[%clk 0:02:15]} 26...
Ne3 {[%clk 0:01:16.5]} 27. Bxe3 {[%clk 0:02:13.9]} 27... Bxe3 {[%clk 0:01:17.4]}
28. Rf3 {[%clk 0:02:13.8]} 28... Bd4 {[%clk 0:01:14.9]} 29. g5 {[%clk
0:02:09.5]} 29... Ba6 {[%clk 0:01:05.8]} 30. Bxe8 {[%clk 0:02:05.4]} 30... Raxe8
{[%clk 0:01:02.9]} 31. Nf6 {[%clk 0:02:06]} 31... Rd8 {[%clk 0:00:46.9]} 32. Rh1
{[%clk 0:02:00]} 32... Bc4 {[%clk 0:00:43.1]} 33. Kg3 {[%clk 0:01:53.4]} 33...
Rxf6 {[%clk 0:00:40.2]} 34. exf6 {[%clk 0:01:53.6]} 34... Bxf6 {[%clk
0:00:40.3]} 35. Nf2 {[%clk 0:01:52.4]} 35... Kg8 {[%clk 0:00:38.7]} 36. Rxh6
{[%clk 0:01:48.6]} 36... Bxb2 {[%clk 0:00:38.6]} 37. Ng4 {[%clk 0:01:40.9]}
37... Bd5 {[%clk 0:00:38.1]} 38. Qd2 {[%clk 0:01:26.3]} 38... Bd4 {[%clk
0:00:35.8]} 39. Rd3 {[%clk 0:01:25.5]} 39... Rf8 {[%clk 0:00:34.1]} 40. Qh2
{[%clk 0:01:00.3]} 40... Be4 {[%clk 0:00:28.7]} 41. Rb3 {[%clk 0:00:58.6]} 41...
b5 {[%clk 0:00:27.3]} 42. Qh5 {[%clk 0:00:49.4]} 42... e5 {[%clk 0:00:25.7]} 43.
Kh2 {[%clk 0:00:48.1]} 43... exf4 {[%clk 0:00:25.6]} 44. Rh3 {[%clk 0:00:48.1]}
44... f3 {[%clk 0:00:22]} 45. Re6 {[%clk 0:00:33.6]} 45... f2 {[%clk 0:00:18.7]}
46. Nxf2 {[%clk 0:00:15.4]} 46... Rxf2+ {[%clk 0:00:17.7]} 47. Kg3 {[%clk
0:00:15.9]} 47... Rf3+ {[%clk 0:00:16.8]} 48. Kg4 {[%clk 0:00:16.3]} 48... Rxh3
{[%clk 0:00:16.2]} 49. Re8+ {[%clk 0:00:16.5]} 49... Qf8 {[%clk 0:00:16.4]} 50.
Rxf8+ {[%clk 0:00:16.5]} 50... Kxf8 {[%clk 0:00:16.8]} 51. Qxh3 {[%clk
0:00:15.8]} 51... Bd5 {[%clk 0:00:16.6]} 52. Qh6+ {[%clk 0:00:15.5]} 52... Bg7
{[%clk 0:00:15.7]} 53. Qd6+ {[%clk 0:00:15.7]} 53... Kg8 {[%clk 0:00:15.8]} 54.
Qxc5 {[%clk 0:00:16.3]} 54... Kf7 {[%clk 0:00:14]} 55. Qa7+ {[%clk 0:00:16.4]}
55... Kg6 {[%clk 0:00:14.2]} 56. Qxa5 {[%clk 0:00:17.3]} 56... Be6+ {[%clk
0:00:14.3]} 57. Kh4 {[%clk 0:00:17.2]} 57... Bd5 {[%clk 0:00:13.9]} 58. Qd2
{[%clk 0:00:16.4]} 58... Be5 {[%clk 0:00:12.9]} 59. Qd3+ {[%clk 0:00:16.5]}
59... Kg7 {[%clk 0:00:11.7]} 60. a3 {[%clk 0:00:17]} 60... Bd6 {[%clk
0:00:08.1]} 61. Qd4+ {[%clk 0:00:15.2]} 61... Kg8 {[%clk 0:00:07.9]} 62. g6
{[%clk 0:00:14.4]} 62... Be7+ {[%clk 0:00:07]} 63. Kh5 {[%clk 0:00:14.4]} 63...
Bf3+ {[%clk 0:00:06.5]} 64. Kh6 {[%clk 0:00:14.8]} 64... Bf8+ {[%clk 0:00:04.6]}
65. Kg5 {[%clk 0:00:15.3]} 65... Be7+ {[%clk 0:00:04.7]} 66. Kf5 {[%clk
0:00:15.5]} 66... Bd5 {[%clk 0:00:04.6]} 67. Qe5 {[%clk 0:00:15.4]} 67... Bf8
{[%clk 0:00:04.7]} 68. Qc7 {[%clk 0:00:15.1]} 68... Bg7 {[%clk 0:00:03.8]} 69.
Qc8+ {[%clk 0:00:13.5]} 69... Bf8 {[%clk 0:00:04]} 70. Qe8 {[%clk 0:00:13]}
70... Bc4 {[%clk 0:00:03.4]} 71. Kf6 {[%clk 0:00:12.9]} 71... Be6 {[%clk
0:00:01.3]} 72. Qxe6+ {[%clk 0:00:12.5]} 1-0

[Event "*** SCC Grand Prix: Titled Tuesday Blitz"]
[Site "Chess.com"]
[Date "2020.06.02"]
[Round "2"]
[White "sopo-tereladze"]
[Black "theredking89"]
[Result "0-1"]
[WhiteElo "2350"]
[BlackElo "2636"]
[TimeControl "180+1"]
[EndTime "10:19:56 PDT"]
[Termination "theredking89 won on time"]

1. e4 {[%clk 0:03:00.9]} 1... c5 {[%clk 0:02:59.5]} 2. Nf3 {[%clk 0:03:01.1]}
2... d6 {[%clk 0:02:59.9]} 3. d4 {[%clk 0:03:00.7]} 3... cxd4 {[%clk 0:03:00.8]}
4. Qxd4 {[%clk 0:03:00.5]} 4... a6 {[%clk 0:02:59]} 5. Be3 {[%clk 0:02:55.7]}
5... Nc6 {[%clk 0:02:57.8]} 6. Qd2 {[%clk 0:02:55.5]} 6... Nf6 {[%clk
0:02:57.3]} 7. Nc3 {[%clk 0:02:55.9]} 7... e6 {[%clk 0:02:16]} 8. h3 {[%clk
0:02:40.2]} 8... Be7 {[%clk 0:02:16]} 9. Be2 {[%clk 0:02:39.8]} 9... O-O {[%clk
0:02:15.7]} 10. O-O {[%clk 0:02:40.2]} 10... b5 {[%clk 0:02:15.7]} 11. a3 {[%clk
0:02:38.7]} 11... Qc7 {[%clk 0:02:15.9]} 12. Rfe1 {[%clk 0:02:32.8]} 12... Bb7
{[%clk 0:02:16]} 13. Bd3 {[%clk 0:02:33.2]} 13... Na5 {[%clk 0:02:15]} 14. Rad1
{[%clk 0:02:32.9]} 14... Nc4 {[%clk 0:02:14.9]} 15. Bxc4 {[%clk 0:02:32.5]}
15... Qxc4 {[%clk 0:02:14.8]} 16. e5 {[%clk 0:02:20.6]} 16... Nd5 {[%clk
0:01:46.1]} 17. Nxd5 {[%clk 0:02:16.3]} 17... Bxd5 {[%clk 0:01:47]} 18. exd6
{[%clk 0:02:16.5]} 18... Bxd6 {[%clk 0:01:45.6]} 19. Nd4 {[%clk 0:02:05.5]}
19... Rac8 {[%clk 0:01:40.1]} 20. c3 {[%clk 0:02:02.4]} 20... Bb8 {[%clk
0:01:31.9]} 21. Nf5 {[%clk 0:01:49.5]} 21... Rfe8 {[%clk 0:01:10.4]} 22. Ng3
{[%clk 0:01:34.4]} 22... Qc6 {[%clk 0:01:06.7]} 23. f4 {[%clk 0:01:30.5]} 23...
a5 {[%clk 0:01:03.6]} 24. Bd4 {[%clk 0:01:28.1]} 24... Qc7 {[%clk 0:00:48.1]}
25. Rf1 {[%clk 0:01:22.9]} 25... Ba7 {[%clk 0:00:45.4]} 26. Qe3 {[%clk
0:01:08.4]} 26... Bxd4 {[%clk 0:00:44.3]} 27. Rxd4 {[%clk 0:01:09.3]} 27... Rb8
{[%clk 0:00:40.9]} 28. Ne4 {[%clk 0:01:02]} 28... b4 {[%clk 0:00:39]} 29. axb4
{[%clk 0:01:01.2]} 29... axb4 {[%clk 0:00:39.9]} 30. Re1 {[%clk 0:00:57.7]}
30... bxc3 {[%clk 0:00:38.7]} 31. Nxc3 {[%clk 0:00:57.7]} 31... Ba8 {[%clk
0:00:35.5]} 32. Qf2 {[%clk 0:00:55.1]} 32... Qb6 {[%clk 0:00:33.1]} 33. Rd2
{[%clk 0:00:52.1]} 33... Qb7 {[%clk 0:00:30.3]} 34. Ne4 {[%clk 0:00:49.3]} 34...
Qc7 {[%clk 0:00:26.8]} 35. Ng5 {[%clk 0:00:43.1]} 35... h6 {[%clk 0:00:23.7]}
36. Ne4 {[%clk 0:00:40.3]} 36... Rbd8 {[%clk 0:00:20.8]} 37. Rxd8 {[%clk
0:00:38.1]} 37... Rxd8 {[%clk 0:00:21.7]} 38. Qg3 {[%clk 0:00:38.3]} 38... Qe7
{[%clk 0:00:19.8]} 39. Qc3 {[%clk 0:00:33.1]} 39... Qa7+ {[%clk 0:00:17.9]} 40.
Kh1 {[%clk 0:00:29.1]} 40... Bxe4 {[%clk 0:00:17.5]} 41. Rxe4 {[%clk 0:00:25.1]}
41... Qb7 {[%clk 0:00:17.4]} 42. Re1 {[%clk 0:00:21.6]} 42... Rb8 {[%clk
0:00:16.9]} 43. Re2 {[%clk 0:00:20.6]} 43... Qd5 {[%clk 0:00:16.1]} 44. Rd2
{[%clk 0:00:19.6]} 44... Qe4 {[%clk 0:00:15.4]} 45. Qf3 {[%clk 0:00:17.7]} 45...
Qxf3 {[%clk 0:00:14.4]} 46. gxf3 {[%clk 0:00:18.6]} 46... Rb4 {[%clk 0:00:14.4]}
47. Rd3 {[%clk 0:00:16.3]} 47... Rxb2 {[%clk 0:00:13.7]} 48. Re3 {[%clk
0:00:14.8]} 48... Kh7 {[%clk 0:00:13.5]} 49. Kg1 {[%clk 0:00:14.7]} 49... Rb4
{[%clk 0:00:13.7]} 50. Kg2 {[%clk 0:00:14.1]} 50... Rxf4 {[%clk 0:00:13.7]} 51.
Ra3 {[%clk 0:00:15]} 51... Rf5 {[%clk 0:00:13.9]} 52. Ra7 {[%clk 0:00:15]} 52...
h5 {[%clk 0:00:14.3]} 53. Kg3 {[%clk 0:00:15.1]} 53... Kg6 {[%clk 0:00:14.9]}
54. h4 {[%clk 0:00:14.9]} 54... Re5 {[%clk 0:00:14.8]} 55. Rb7 {[%clk
0:00:13.8]} 55... Rd5 {[%clk 0:00:15.7]} 56. Rb8 {[%clk 0:00:13.6]} 56... Rf5
{[%clk 0:00:16.6]} 57. Rb7 {[%clk 0:00:13.6]} 57... Ra5 {[%clk 0:00:17.1]} 58.
Rb8 {[%clk 0:00:13.7]} 58... Kf6 {[%clk 0:00:17.4]} 59. Rb7 {[%clk 0:00:13.6]}
59... g6 {[%clk 0:00:17.9]} 60. Rb8 {[%clk 0:00:12.7]} 60... Rf5 {[%clk
0:00:18.8]} 61. Rb7 {[%clk 0:00:12.4]} 61... Rd5 {[%clk 0:00:19.7]} 62. Rb8
{[%clk 0:00:12.4]} 62... Rd7 {[%clk 0:00:19.9]} 63. Rb6 {[%clk 0:00:12]} 63...
Ke7 {[%clk 0:00:20.2]} 64. Rb4 {[%clk 0:00:11.3]} 64... e5 {[%clk 0:00:19.9]}
65. Ra4 {[%clk 0:00:10.7]} 65... Rd6 {[%clk 0:00:20.2]} 66. Ra7+ {[%clk
0:00:10.2]} 66... Ke6 {[%clk 0:00:20.6]} 67. Rb7 {[%clk 0:00:10.4]} 67... Kf6
{[%clk 0:00:20.7]} 68. Ra7 {[%clk 0:00:10.1]} 68... Re6 {[%clk 0:00:21.2]} 69.
Rb7 {[%clk 0:00:10.1]} 69... e4 {[%clk 0:00:21]} 70. fxe4 {[%clk 0:00:07.9]}
70... Rxe4 {[%clk 0:00:21.9]} 71. Rb6+ {[%clk 0:00:08.3]} 71... Kg7 {[%clk
0:00:22]} 72. Rb3 {[%clk 0:00:09.2]} 72... Rg4+ {[%clk 0:00:22.2]} 73. Kh3
{[%clk 0:00:07.8]} 73... Rf4 {[%clk 0:00:22.5]} 74. Rc3 {[%clk 0:00:07.7]} 74...
Rf5 {[%clk 0:00:22.8]} 75. Rb3 {[%clk 0:00:08.6]} 75... Kf6 {[%clk 0:00:22.9]}
76. Rd3 {[%clk 0:00:08.4]} 76... Re5 {[%clk 0:00:23]} 77. Rf3+ {[%clk
0:00:07.8]} 77... Ke6 {[%clk 0:00:22.9]} 78. Rc3 {[%clk 0:00:07.9]} 78... Kf6
{[%clk 0:00:23.1]} 79. Rf3+ {[%clk 0:00:07.3]} 79... Kg7 {[%clk 0:00:22.6]} 80.
Ra3 {[%clk 0:00:08.2]} 80... Re7 {[%clk 0:00:22.5]} 81. Ra4 {[%clk 0:00:07.8]}
81... f6 {[%clk 0:00:22.8]} 82. Ra3 {[%clk 0:00:07.7]} 82... Re4 {[%clk
0:00:22.1]} 83. Ra7+ {[%clk 0:00:07.1]} 83... Kh6 {[%clk 0:00:22.3]} 84. Ra6
{[%clk 0:00:08]} 84... Rf4 {[%clk 0:00:20.3]} 85. Kg3 {[%clk 0:00:07.3]} 85...
Rg4+ {[%clk 0:00:20.3]} 86. Kh3 {[%clk 0:00:07.2]} 86... f5 {[%clk 0:00:20.8]}
87. Rb6 {[%clk 0:00:07]} 87... f4 {[%clk 0:00:21.1]} 88. Rb7 {[%clk 0:00:06.2]}
88... Rg3+ {[%clk 0:00:21.1]} 89. Kh2 {[%clk 0:00:05]} 89... Re3 {[%clk
0:00:21.5]} 90. Rf7 {[%clk 0:00:03.9]} 90... Rf3 {[%clk 0:00:20.5]} 91. Kg2
{[%clk 0:00:03.7]} 91... Rg3+ {[%clk 0:00:20.4]} 92. Kh2 {[%clk 0:00:03.5]}
92... Rg4 {[%clk 0:00:20.5]} 93. Kh3 {[%clk 0:00:02.9]} 93... g5 {[%clk
0:00:20.5]} 0-1